Workbook

Sheet Report
B2: Health Management Associates
B3: Medicare Advantage Enrollment Report
D4: Year:
D5: Month:
D6: State:
B8: Summary of All Plans
C9: Monthly Dashboard Data | H9: Previous Year
B10: YEAR: | C10: 2022 | E10: Original Medicare | F10: MA & Other Health Plans | G10: Total | J10: Original Medicare | K10: MA & Other Health Plans | L10: Total
B11: MONTH: | C11: March | D11: State Totals | E11: =VLOOKUP($C$12,$B$61:$U$113,9,0) -> 493149 | F11: =VLOOKUP($C$12,$B$61:$U$113,10,0) -> 579990 | G11: =VLOOKUP($C$12,$B$61:$U$113,11,0) -> 1073139 | I11: State Totals | J11: =VLOOKUP($C$12,$B$61:$U$113,15,0) -> 532828 | K11: =VLOOKUP($C$12,$B$61:$U$113,16,0) -> 534592 | L11: =VLOOKUP($C$12,$B$61:$U$113,17,0) -> 1067420
B12: >>>> Select STATE: | C12: Alabama | D12:  Previous Year Chg | E12: =IF(AND(E11>0,J11>0,E11<>"",J11<>""),E11/J11-1,"") -> -0.07446868408 | F12: =IF(AND(F11>0,K11>0,F11<>"",K11<>""),F11/K11-1,"") -> 0.08492083683 | G12: =IF(AND(G11>0,L11>0,G11<>"",L11<>""),G11/L11-1,"") -> 0.005357778569
D13: State Totals | E13: =VLOOKUP($C$12,$B$61:$U$113,9,0) -> 493149 | F13: =VLOOKUP($C$12,$B$61:$U$113,10,0) -> 579990 | G13: =VLOOKUP($C$12,$B$61:$U$113,11,0) -> 1073139 | I13: % of State | J13: =IF(AND(J15>0,J11>0,J15<>"",J15<>""),J11/J15,"") -> 1 | K13: =IF(AND(K15>0,K11>0,K15<>"",K15<>""),K11/K15,"") -> 1 | L13: =IF(AND(L15>0,L11>0,L15<>"",L15<>""),L11/L15,"") -> 1
D15: State Totals | E15: =VLOOKUP($C$12,$B$61:$U$113,9,0) -> 493149 | F15: =VLOOKUP($C$12,$B$61:$U$113,10,0) -> 579990 | G15: =VLOOKUP($C$12,$B$61:$U$113,11,0) -> 1073139 | I15: State Totals | J15: =VLOOKUP($C$12,$B$61:$U$113,15,0) -> 532828 | K15: =VLOOKUP($C$12,$B$61:$U$113,16,0) -> 534592 | L15: =VLOOKUP($C$12,$B$61:$U$113,17,0) -> 1067420
D16: Previous Year Chg | E16: =IF(AND(E15>0,J15>0,E15<>"",J15<>""),E15/J15-1,"") -> -0.07446868408 | F16: =IF(AND(F15>0,K15>0,F15<>"",K15<>""),F15/K15-1,"") -> 0.08492083683 | G16: =IF(AND(G15>0,L15>0,G15<>"",L15<>""),G15/L15-1,"") -> 0.005357778569
C17: Monthly Enrollment Data (Excludes 800 Series) | H17: Previous Year (Exclude 800 Series)
F18: Enrollment | K18: Enrollment
D19: State Totals | F19: =VLOOKUP($C$12,$B$61:$U$113,3,0) -> 687993 | I19: State Totals | K19: =VLOOKUP($C$12,$B$61:$U$113,4,0) -> 641037
D20: Change from previous year | F20: =IF(AND(F19>0,K19>0,F19<>"",K19<>""),F19/K19-1,"") -> 0.07325006201
D21: % of State | F21: =IF(AND(F23>0,F19>0,F23<>"",F23<>""),F19/F23,"") -> 1 | I21: % of State | K21: =IF(AND(K23>0,K19>0,K23<>"",K23<>""),K19/K23,"") -> 1
D23: State Totals | F23: =VLOOKUP($C$12,$B$61:$U$113,3,0) -> 687993 | I23: State Totals | K23: =VLOOKUP($C$12,$B$61:$U$113,4,0) -> 641037
D24: Previous Year Chg | F24: =IF(AND(F23>0,K23>0,F23<>"",K23<>""),F23/K23-1,"") -> 0.07325006201
B26: Top 5 Parent Organizations (Excludes 800 Series)
G27: Current Year | H27: Prev Year
F28: Top 5 Total Enrollment: | G28: =C46 -> 571841 | H28: =D46 -> 543649
B29: (See key for Color codes to column data sources) | D29: Top 5 as a % of Total MA (Individual and Group): | G29: =IF(AND(F11<>"",F11>0),G28/F11,"") -> 0.9859497578 | H29: =IF(AND(K11>0,K11<>""),H28/K11,"") -> 1.016941892
B30: Group | C30: (All) | D30: hide
B31: Year | C31: 2019 | D31: hide
B32: Month | C32: February | D32: hide
B33: State | C33: AR | D33: hide
B34: County | C34: (All) | D34: hide
B35: Prefix | C35: (All) | D35: hide
B36: SNP Plan | C36: (All) | D36: hide
B37: Type | C37: (Multiple Items) | D37: hide
B38: 800 Series | C38: 0 | D38: hide
B40: Parent Organization (Last) | C40: Enrollment | D40: Previous Year Enrollment | E40: Min Premium | F40: Max Premium | G40: Min Drug Deductible | H40: Max Drug Deductible
B41: =VLOOKUP(TRIM(_xlfn.CONCAT(TRIM($C$12)&"1")),$B$115:$L$385,4,0) -> UnitedHealth Group, Inc. | C41: =IFERROR(IF(VLOOKUP(TRIM(_xlfn.CONCAT(TRIM($C$12)&"1")),$B$115:$L$382,5,0) ="NULL",0,VLOOKUP(TRIM(_xlfn.CONCAT(TRIM($C$12)&"1")),$B$115:$L$382,5,0)),0) -> 161792 | D41: =IFERROR(IF(VLOOKUP(TRIM(_xlfn.CONCAT(TRIM($C$12)&"1")),$B$115:$L$382,6,0)="NULL",0,VLOOKUP(TRIM(_xlfn.CONCAT(TRIM($C$12)&"1")),$B$115:$L$382,6,0)),0) -> 146909 | E41: =IF(VLOOKUP(TRIM(_xlfn.CONCAT(TRIM($C$12)&"1")),$B$115:$L$382,7,0)="NULL",0,VLOOKUP(TRIM(_xlfn.CONCAT(TRIM($C$12)&"1")),$B$115:$L$382,7,0)) -> 0 | F41: =IF(VLOOKUP(TRIM(_xlfn.CONCAT(TRIM($C$12)&"1")),$B$115:$L$382,8,0)="NULL",0,VLOOKUP(TRIM(_xlfn.CONCAT(TRIM($C$12)&"1")),$B$115:$L$382,8,0)) -> 46 | G41: =IF(VLOOKUP(TRIM(_xlfn.CONCAT(TRIM($C$12)&"1")),$B$115:$L$382,9,0)="NULL",0,VLOOKUP(TRIM(_xlfn.CONCAT(TRIM($C$12)&"1")),$B$115:$L$382,9,0)) -> 0 | H41: =IF(VLOOKUP(TRIM(_xlfn.CONCAT(TRIM($C$12)&"1")),$B$115:$L$382,10,0)="NULL",0,VLOOKUP(TRIM(_xlfn.CONCAT(TRIM($C$12)&"1")),$B$115:$L$385,10,0)) -> 480 | L41: =IF(B41<>"","X","") -> X | P41: =B41:B45 -> UnitedHealth Group, Inc. | Q41: =C41/$F$19 -> 0.2351651834
B42: =IFERROR(VLOOKUP(TRIM(_xlfn.CONCAT(TRIM($C$12)&"2")),$B$115:$L$385,4,0),"") -> Humana Inc. | C42: =IFERROR(IF(VLOOKUP(TRIM(_xlfn.CONCAT(TRIM($C$12)&"2")),$B$115:$L$382,5,0) ="NULL",0,VLOOKUP(TRIM(_xlfn.CONCAT(TRIM($C$12)&"2")),$B$115:$L$382,5,0)),0) -> 140940 | D42: =IFERROR(IF(VLOOKUP(TRIM(_xlfn.CONCAT(TRIM($C$12)&"2")),$B$115:$L$382,6,0)="NULL",0,VLOOKUP(TRIM(_xlfn.CONCAT(TRIM($C$12)&"2")),$B$115:$L$382,6,0)),0) -> 135733 | E42: =IFERROR(IF(VLOOKUP(TRIM(_xlfn.CONCAT(TRIM($C$12)&"2")),$B$115:$L$382,7,0)="NULL",0,VLOOKUP(TRIM(_xlfn.CONCAT(TRIM($C$12)&"2")),$B$115:$L$382,7,0)),0) -> 0 | F42: =IFERROR(IF(VLOOKUP(TRIM(_xlfn.CONCAT(TRIM($C$12)&"2")),$B$115:$L$382,8,0)="NULL",0,VLOOKUP(TRIM(_xlfn.CONCAT(TRIM($C$12)&"2")),$B$115:$L$382,8,0)),0) -> 84 | G42: =IFERROR(IF(VLOOKUP(TRIM(_xlfn.CONCAT(TRIM($C$12)&"2")),$B$115:$L$382,9,0)="NULL",0,VLOOKUP(TRIM(_xlfn.CONCAT(TRIM($C$12)&"2")),$B$115:$L$382,9,0)),0) -> 0 | H42: =IFERROR(IF(VLOOKUP(TRIM(_xlfn.CONCAT(TRIM($C$12)&"2")),$B$115:$L$382,10,0)="NULL",0,VLOOKUP(TRIM(_xlfn.CONCAT(TRIM($C$12)&"2")),$B$115:$L$382,10,0)),0) -> 480 | L42: =IF(B42<>"","X","") -> X | P42: =B42:B46 -> Humana Inc. | Q42: =IF($C$42/$F$19=0,"",$C$42/$F$19) -> 0.2048567355
B43: =IFERROR(VLOOKUP(TRIM(_xlfn.CONCAT(TRIM($C$12)&"3")),$B$115:$L$385,4,0),"") -> BlueCross BlueShield of Alabama | C43: =IFERROR(IF(VLOOKUP(TRIM(_xlfn.CONCAT(TRIM($C$12)&"3")),$B$115:$L$382,5,0) ="NULL",0,VLOOKUP(TRIM(_xlfn.CONCAT(TRIM($C$12)&"3")),$B$115:$L$382,5,0)),0) -> 129814 | D43: =IFERROR(IF(VLOOKUP(TRIM(_xlfn.CONCAT(TRIM($C$12)&"3")),$B$115:$L$382,6,0)="NULL",0,VLOOKUP(TRIM(_xlfn.CONCAT(TRIM($C$12)&"3")),$B$115:$L$382,6,0)),0) -> 126149 | E43: =IFERROR(IF(VLOOKUP(TRIM(_xlfn.CONCAT(TRIM($C$12)&"3")),$B$115:$L$382,7,0)="NULL",0,VLOOKUP(TRIM(_xlfn.CONCAT(TRIM($C$12)&"3")),$B$115:$L$382,7,0)),0) -> 0 | F43: =IFERROR(IF(VLOOKUP(TRIM(_xlfn.CONCAT(TRIM($C$12)&"3")),$B$115:$L$382,8,0)="NULL",0,VLOOKUP(TRIM(_xlfn.CONCAT(TRIM($C$12)&"3")),$B$115:$L$382,8,0)),0) -> 171 | G43: =IFERROR(IF(VLOOKUP(TRIM(_xlfn.CONCAT(TRIM($C$12)&"3")),$B$115:$L$382,9,0)="NULL",0,VLOOKUP(TRIM(_xlfn.CONCAT(TRIM($C$12)&"3")),$B$115:$L$382,9,0)),0) -> 0 | H43: =IFERROR(IF(VLOOKUP(TRIM(_xlfn.CONCAT(TRIM($C$12)&"3")),$B$115:$L$382,10,0)="NULL",0,VLOOKUP(TRIM(_xlfn.CONCAT(TRIM($C$12)&"3")),$B$115:$L$382,10,0)),0) -> 150 | L43: X | P43: BlueCross BlueShield of Alabama | Q43: =IF($C$43/$F$19=0,"",C43/$F$19) -> 0.1886850593
B44: =IFERROR(VLOOKUP(TRIM(_xlfn.CONCAT(TRIM($C$12)&"4")),$B$115:$L$385,4,0),"") -> CVS Health Corporation | C44: =IFERROR(IF(VLOOKUP(TRIM(_xlfn.CONCAT(TRIM($C$12)&"4")),$B$115:$L$382,5,0) ="NULL",0,VLOOKUP(TRIM(_xlfn.CONCAT(TRIM($C$12)&"4")),$B$115:$L$382,5,0)),0) -> 69672 | D44: =IFERROR(IF(VLOOKUP(TRIM(_xlfn.CONCAT(TRIM($C$12)&"4")),$B$115:$L$382,6,0)="NULL",0,VLOOKUP(TRIM(_xlfn.CONCAT(TRIM($C$12)&"4")),$B$115:$L$382,6,0)),0) -> 66417 | E44: =IFERROR(IF(VLOOKUP(TRIM(_xlfn.CONCAT(TRIM($C$12)&"4")),$B$115:$L$382,7,0)="NULL",0,VLOOKUP(TRIM(_xlfn.CONCAT(TRIM($C$12)&"4")),$B$115:$L$382,7,0)),0) -> 0 | F44: =IFERROR(IF(VLOOKUP(TRIM(_xlfn.CONCAT(TRIM($C$12)&"4")),$B$115:$L$382,8,0)="NULL",0,VLOOKUP(TRIM(_xlfn.CONCAT(TRIM($C$12)&"4")),$B$115:$L$382,8,0)),0) -> 25.4 | G44: =IFERROR(IF(VLOOKUP(TRIM(_xlfn.CONCAT(TRIM($C$12)&"4")),$B$115:$L$382,9,0)="NULL",0,VLOOKUP(TRIM(_xlfn.CONCAT(TRIM($C$12)&"4")),$B$115:$L$382,9,0)),0) -> 0 | H44: =IFERROR(IF(VLOOKUP(TRIM(_xlfn.CONCAT(TRIM($C$12)&"4")),$B$115:$L$382,10,0)="NULL",0,VLOOKUP(TRIM(_xlfn.CONCAT(TRIM($C$12)&"4")),$B$115:$L$382,10,0)),0) -> 480 | L44: X | P44: CVS Health Corporation | Q44: =IF($C$44/$F$19=0,"",$C$44/$F$19) -> 0.1012684722
B45: =IFERROR(VLOOKUP(TRIM(_xlfn.CONCAT(TRIM($C$12)&"5")),$B$115:$L$385,4,0),"") -> CIGNA | C45: =IFERROR(IF(VLOOKUP(TRIM(_xlfn.CONCAT(TRIM($C$12)&"5")),$B$115:$L$382,5,0) ="NULL",0, VLOOKUP(TRIM(_xlfn.CONCAT(TRIM($C$12)&"5")),$B$115:$L$382,5,0)),0) -> 69623 | D45: =IFERROR(IF(VLOOKUP(TRIM(_xlfn.CONCAT(TRIM($C$12)&"5")),$B$115:$L$382,6,0)="NULL",0,VLOOKUP(TRIM(_xlfn.CONCAT(TRIM($C$12)&"5")),$B$115:$L$382,6,0)),0) -> 68441 | E45: =IFERROR(IF(VLOOKUP(TRIM(_xlfn.CONCAT(TRIM($C$12)&"5")),$B$115:$L$382,7,0)="NULL",0,VLOOKUP(TRIM(_xlfn.CONCAT(TRIM($C$12)&"5")),$B$115:$L$382,7,0)),0) -> 0 | F45: =IFERROR(IF(VLOOKUP(TRIM(_xlfn.CONCAT(TRIM($C$12)&"5")),$B$115:$L$382,8,0)="NULL",0,VLOOKUP(TRIM(_xlfn.CONCAT(TRIM($C$12)&"5")),$B$115:$L$382,8,0)),0) -> 30 | G45: =IFERROR(IF(VLOOKUP(TRIM(_xlfn.CONCAT(TRIM($C$12)&"5")),$B$115:$L$382,9,0)="NULL",0,VLOOKUP(TRIM(_xlfn.CONCAT(TRIM($C$12)&"5")),$B$115:$L$382,9,0)),0) -> 0 | H45: =IFERROR(IF(VLOOKUP(TRIM(_xlfn.CONCAT(TRIM($C$12)&"5")),$B$115:$L$382,10,0)="NULL",0,VLOOKUP(TRIM(_xlfn.CONCAT(TRIM($C$12)&"5")),$B$115:$L$382,10,0)),0) -> 480 | L45: X | P45: CIGNA | Q45: =IF($C$45/$F$19=0,"",$C$45/$F$19) -> 0.1011972506
B46: Top 5 Grand Total | C46: =SUM(C41:C45) -> 571841 | D46: =SUM(D41:D45) -> 543649 | L46: X
B47: Top 5 as a % of All Plans in detail | C47: =C46/C48 -> 0.8311727009 | D47: =IFERROR(D46/D48,0) -> 0.8480774121
B48: All Plans In Detail Total | C48: =F19 -> 687993 | D48: =K19 -> 641037 | E48: =IF(VLOOKUP($C$12,$B$61:$U$113,5,0)="NULL",0,VLOOKUP($C$12,$B$61:$U$113,5,0)) -> 0 | F48: =IF(VLOOKUP($C$12,$B$61:$U$113,6,0)="NULL",0,VLOOKUP($C$12,$B$61:$U$113,6,0)) -> 171 | G48: =IF(VLOOKUP($C$12,$B$61:$U$113,7,0)="NULL",0,VLOOKUP($C$12,$B$61:$U$113,7,0)) -> 0 | H48: =IF(VLOOKUP($C$12,$B$61:$U$113,8,0)="NULL",0,VLOOKUP($C$12,$B$61:$U$113,8,0)) -> 480
B49: Group | C49: (All) | D49: hide
B50: Year | C50: 2019 | D50: hide
B51: Month | C51: February | D51: hide
B52: State | C52: AR | D52: hide
B53: County | C53: (All) | D53: hide
B54: SNP Plan | C54: (All) | D54: hide
B55: 800 Series | C55: 0 | D55: hide
B56: Type2 | C56: (Multiple Items) | D56: hide
B58: These calculations do not include PDP | C58: 800 Series include the Employer Group Waiver Plans
B59: Source: Health Management Associates Analysis of CMS Data
B60: StateName | C60: StateAbbreviation | D60: CurrentEnrollment | E60: PrevEnrollment | F60: MinPremium | G60: MaxPremium | H60: MinDeductible | I60: MaxDeductible | J60: CurrentMA | K60: CurrentMAPlans | L60: CurrentPlanTotal | M60: CurrentPDPTrad | N60: CurrentPDPPlans | O60: CurrentPDPTotal | P60: PrevMA | Q60: PrevMAPlans | R60: PrevPlanTotal | S60: PrevPDPTrad | T60: PrevPDPPlans | U60: PrevPDPTotal
B61: North Dakota | C61: ND | D61: 110530 | E61: 92563 | F61: 0 | G61: 253.8 | H61: 0 | I61: 480 | J61: 101846 | K61: 36915 | L61: 138761 | M61: 88630 | N61: 14493 | O61: 103123 | P61: 105393 | Q61: 30660 | R61: 136053 | S61: 89203 | T61: 10079 | U61: 99282
B62: Vermont | C62: VT | D62: 101253 | E62: 90467 | F62: 0 | G62: 130 | H62: 0 | I62: 480 | J62: 114561 | K62: 42046 | L62: 156607 | M62: 81463 | N62: 39404 | O62: 120867 | P62: 124056 | Q62: 29856 | R62: 153912 | S62: 89611 | T62: 27607 | U62: 117218
B63: Maine | C63: ME | D63: 252328 | E63: 220556 | F63: 0 | G63: 99 | H63: 0 | I63: 480 | J63: 174653 | K63: 184340 | L63: 358993 | M63: 108331 | N63: 173851 | O63: 282182 | P63: 189296 | Q63: 164834 | R63: 354130 | S63: 118757 | T63: 155434 | U63: 274191
B64: Montana | C64: MT | D64: 164888 | E64: 138282 | F64: 0 | G64: 222.4 | H64: 0 | I64: 480 | J64: 184040 | K64: 62562 | L64: 246602 | M64: 119155 | N64: 56883 | O64: 176038 | P64: 186890 | Q64: 55492 | R64: 242382 | S64: 119656 | T64: 50400 | U64: 170056
B65: Iowa | C65: IA | D65: 506345 | E65: 412874 | F65: 0 | G65: 149 | H65: 0 | I65: 480 | J65: 448334 | K65: 203241 | L65: 651575 | M65: 347537 | N65: 183211 | O65: 530748 | P65: 463808 | Q65: 179184 | R65: 642992 | S65: 368128 | T65: 147460 | U65: 515588
B66: Oklahoma | C66: OK | D66: 482930 | E66: 431718 | F66: 0 | G66: 169 | H66: 0 | I66: 480 | J66: 501140 | K66: 264595 | L66: 765735 | M66: 304975 | N66: 238004 | O66: 542979 | P66: 528983 | Q66: 231556 | R66: 760539 | S66: 321047 | T66: 207950 | U66: 528997
B67: Missouri | C67: MO | D67: 908832 | E67: 760502 | F67: 0 | G67: 115 | H67: 0 | I67: 480 | J67: 668285 | K67: 602079 | L67: 1270364 | M67: 462551 | N67: 546940 | O67: 1009491 | P67: 708366 | Q67: 549495 | R67: 1257861 | S67: 491421 | T67: 492322 | U67: 983743
B68: Arizona | C68: AZ | D68: 981058 | E68: 835420 | F68: 0 | G68: 119 | H68: 0 | I68: 480 | J68: 740619 | K68: 670239 | L68: 1410858 | M68: 456387 | N68: 636718 | O68: 1093105 | P68: 765319 | Q68: 626398 | R68: 1391717 | S68: 465563 | T68: 594846 | U68: 1060409
B69: Maryland | C69: MD | D69: 529590 | E69: 439420 | F69: 0 | G69: 301 | H69: 0 | I69: 480 | J69: 879524 | K69: 203537 | L69: 1083061 | M69: 524510 | N69: 179583 | O69: 704093 | P69: 894599 | Q69: 172695 | R69: 1067294 | S69: 530202 | T69: 150125 | U69: 680327
B70: Michigan | C70: MI | D70: 1241236 | E70: 1088639 | F70: 0 | G70: 301 | H70: 0 | I70: 480 | J70: 956193 | K70: 1185233 | L70: 2141426 | M70: 969699 | N70: 798403 | O70: 1768102 | P70: 1029926 | Q70: 1088323 | R70: 2118249 | S70: 949358 | T70: 706243 | U70: 1655601
B71: New Jersey | C71: NJ | D71: 1009638 | E71: 809319 | F71: 0 | G71: 199 | H71: 0 | I71: 480 | J71: 1049956 | K71: 618640 | L71: 1668596 | M71: 871833 | N71: 425806 | O71: 1297639 | P71: 1071364 | Q71: 573224 | R71: 1644588 | S71: 873389 | T71: 385326 | U71: 1258715
B72: Florida | C72: FL | D72: 3520002 | E72: 3260826 | F72: 0 | G72: 199 | H72: 0 | I72: 480 | J72: 2281518 | K72: 2573476 | L72: 4854994 | M72: 1432252 | N72: 2443519 | O72: 3875771 | P72: 2364163 | Q72: 2415901 | R72: 4780064 | S72: 1464529 | T72: 2290718 | U72: 3755247
B73: Virgin Islands | C73: VI | D73: 5544 | E73: 5515 | F73: NULL | G73: NULL | H73: NULL | I73: NULL | J73: 14635 | K73: 5813 | L73: 20448 | M73: 6020 | N73: 5755 | O73: 11775 | P73: 14675 | Q73: 5572 | R73: 20247 | S73: 6168 | T73: 5526 | U73: 11694
B74: Guam | C74: GU | D74: 117876 | E74: 169884 | F74: NULL | G74: NULL | H74: NULL | I74: NULL | J74: 18270 | K74: 155 | L74: 18425 | M74: 2806 | N74: 138 | O74: 2944 | P74: 17900 | Q74: 124 | R74: 18024 | S74: 2850 | T74: 111 | U74: 2961
B75: District of Columbia | C75: DC | D75: 54113 | E75: 46060 | F75: 0 | G75: 142 | H75: 0 | I75: 250 | J75: 67853 | K75: 26032 | L75: 93885 | M75: 35782 | N75: 25124 | O75: 60906 | P75: 70344 | Q75: 23256 | R75: 93600 | S75: 36686 | T75: 22419 | U75: 59105
B76: Puerto Rico | C76: PR | D76: 519359 | E76: 509258 | F76: 0 | G76: 43 | H76: 0 | I76: 480 | J76: 129354 | K76: 627621 | L76: 756975 | M76: 12597 | N76: 625895 | O76: 638492 | P76: 140687 | Q76: 612330 | R76: 753017 | S76: 14698 | T76: 610518 | U76: 625216
B77: Utah | C77: UT | D77: 291795 | E77: 261092 | F77: 0 | G77: 179 | H77: 0 | I77: 480 | J77: 232541 | K77: 200130 | L77: 432671 | M77: 134191 | N77: 188725 | O77: 322916 | P77: 241289 | Q77: 182557 | R77: 423846 | S77: 137219 | T77: 173317 | U77: 310536
B78: Nebraska | C78: NE | D78: 268317 | E78: 223090 | F78: 0 | G78: 125 | H78: 0 | I78: 480 | J78: 260710 | K78: 102732 | L78: 363442 | M78: 190829 | N78: 88637 | O78: 279466 | P78: 271518 | Q78: 86560 | R78: 358078 | S78: 195149 | T78: 75198 | U78: 270347
B79: Kansas | C79: KS | D79: 403140 | E79: 332537 | F79: 0 | G79: 199 | H79: 0 | I79: 480 | J79: 400017 | K79: 159597 | L79: 559614 | M79: 279880 | N79: 144654 | O79: 424534 | P79: 413866 | Q79: 138539 | R79: 552405 | S79: 287259 | T79: 124341 | U79: 411600
B80: Arkansas | C80: AR | D80: 470939 | E80: 388321 | F80: 0 | G80: 132 | H80: 0 | I80: 480 | J80: 411149 | K80: 243186 | L80: 654335 | M80: 262853 | N80: 228619 | O80: 491472 | P80: 431890 | Q80: 219502 | R80: 651392 | S80: 276356 | T80: 205074 | U80: 481430
B81: South Carolina | C81: SC | D81: 737098 | E81: 555482 | F81: 0 | G81: 103 | H81: 0 | I81: 480 | J81: 681848 | K81: 462974 | L81: 1144822 | M81: 446943 | N81: 430198 | O81: 877141 | P81: 712362 | Q81: 415695 | R81: 1128057 | S81: 462285 | T81: 387851 | U81: 850136
B82: Indiana | C82: IN | D82: 929053 | E82: 779968 | F82: 0 | G82: 136 | H82: 0 | I82: 480 | J82: 735345 | K82: 571391 | L82: 1306736 | M82: 551263 | N82: 504966 | O82: 1056229 | P82: 775133 | Q82: 519466 | R82: 1294599 | S82: 574810 | T82: 455289 | U82: 1030099
B83: Washington | C83: WA | D83: 940176 | E83: 852119 | F83: 0 | G83: 296 | H83: 0 | I83: 480 | J83: 834018 | K83: 610364 | L83: 1444382 | M83: 453771 | N83: 552857 | O83: 1006628 | P83: 863044 | Q83: 558166 | R83: 1421210 | S83: 465832 | T83: 502709 | U83: 968541
B84: Georgia | C84: GA | D84: 1192632 | E84: 1010861 | F84: 0 | G84: 103 | H84: 0 | I84: 480 | J84: 907114 | K84: 917750 | L84: 1824864 | M84: 535422 | N84: 874942 | O84: 1410364 | P84: 955392 | Q84: 842590 | R84: 1797982 | S84: 561984 | T84: 806175 | U84: 1368159
B85: Texas | C85: TX | D85: 2930099 | E85: 2638022 | F85: 0 | G85: 255 | H85: 0 | I85: 480 | J85: 2253301 | K85: 2180364 | L85: 4433665 | M85: 1553079 | N85: 1833817 | O85: 3386896 | P85: 2343850 | Q85: 2011150 | R85: 4355000 | S85: 1589413 | T85: 1677631 | U85: 3267044
B86: California | C86: CA | D86: 5467065 | E86: 5085496 | F86: 0 | G86: 269 | H86: 0 | I86: 480 | J86: 3370012 | K86: 3188484 | L86: 6558496 | M86: 2274196 | N86: 3080108 | O86: 5354304 | P86: 3417975 | Q86: 3024194 | R86: 6442169 | S86: 2262781 | T86: 2922548 | U86: 5185329
B87: Wyoming | C87: WY | D87: 72360 | E87: 59106 | F87: 0 | G87: 79 | H87: 100 | I87: 480 | J87: 109388 | K87: 9563 | L87: 118951 | M87: 72999 | N87: 6958 | O87: 79957 | P87: 109338 | Q87: 7034 | R87: 116372 | S87: 72296 | T87: 4498 | U87: 76794
B88: Hawaii | C88: HI | D88: 143464 | E88: 134728 | F88: 0 | G88: 190 | H88: 0 | I88: 480 | J88: 141295 | K88: 150209 | L88: 291504 | M88: 70985 | N88: 144224 | O88: 215209 | P88: 145274 | Q88: 140975 | R88: 286249 | S88: 72004 | T88: 135677 | U88: 207681
B89: Delaware | C89: DE | D89: 129435 | E89: 110221 | F89: 0 | G89: 84 | H89: 0 | I89: 480 | J89: 165299 | K89: 60235 | L89: 225534 | M89: 125475 | N89: 49853 | O89: 175328 | P89: 170675 | Q89: 50626 | R89: 221301 | S89: 128509 | T89: 40913 | U89: 169422
B90: Idaho | C90: ID | D90: 260426 | E90: 223292 | F90: 0 | G90: 169 | H90: 0 | I90: 480 | J90: 206647 | K90: 159207 | L90: 365854 | M90: 126596 | N90: 145495 | O90: 272091 | P90: 215027 | Q90: 144086 | R90: 359113 | S90: 130494 | T90: 131515 | U90: 262009
B91: Nevada | C91: NV | D91: 383585 | E91: 341801 | F91: 0 | G91: 180 | H91: 0 | I91: 480 | J91: 301869 | K91: 264000 | L91: 565869 | M91: 165364 | N91: 251936 | O91: 417300 | P91: 316366 | Q91: 241883 | R91: 558249 | S91: 171800 | T91: 231728 | U91: 403528
B92: Connecticut | C92: CT | D92: 474080 | E92: 440760 | F92: 0 | G92: 242 | H92: 0 | I92: 480 | J92: 345092 | K92: 363258 | L92: 708350 | M92: 238409 | N92: 343761 | O92: 582170 | P92: 364801 | Q92: 332468 | R92: 697269 | S92: 267973 | T92: 296164 | U92: 564137
B93: Mississippi | C93: MS | D93: 455382 | E93: 399134 | F93: 0 | G93: 110 | H93: 0 | I93: 480 | J93: 405225 | K93: 211489 | L93: 616714 | M93: 269962 | N93: 198316 | O93: 468278 | P93: 434152 | Q93: 178386 | R93: 612538 | S93: 290457 | T93: 166876 | U93: 457333
B94: Oregon | C94: OR | D94: 630049 | E94: 587582 | F94: 0 | G94: 211 | H94: 0 | I94: 480 | J94: 440266 | K94: 466595 | L94: 906861 | M94: 266343 | N94: 442458 | O94: 708801 | P94: 457622 | Q94: 439299 | R94: 896921 | S94: 272211 | T94: 416229 | U94: 688440
B95: Minnesota | C95: MN | D95: 843327 | E95: 760659 | F95: 0 | G95: 232.5 | H95: 0 | I95: 480 | J95: 484561 | K95: 595015 | L95: 1079576 | M95: 346932 | N95: 521653 | O95: 868585 | P95: 508804 | Q95: 551363 | R95: 1060167 | S95: 357799 | T95: 479081 | U95: 836880
B96: Alabama | C96: AL | D96: 687993 | E96: 641037 | F96: 0 | G96: 171 | H96: 0 | I96: 480 | J96: 493149 | K96: 579990 | L96: 1073139 | M96: 269142 | N96: 550915 | O96: 820057 | P96: 532828 | Q96: 534592 | R96: 1067420 | S96: 294960 | T96: 509116 | U96: 804076
B97: Kentucky | C97: KY | D97: 626776 | E97: 492309 | F97: 0 | G97: 151 | H97: 0 | I97: 480 | J97: 498666 | K97: 454722 | L97: 953388 | M97: 379729 | N97: 384778 | O97: 764507 | P97: 540926 | Q97: 408578 | R97: 949504 | S97: 408685 | T97: 341955 | U97: 750640
B98: Colorado | C98: CO | D98: 654619 | E98: 585962 | F98: 0 | G98: 199 | H98: 0 | I98: 480 | J98: 498953 | K98: 473637 | L98: 972590 | M98: 298581 | N98: 450922 | O98: 749503 | P98: 515361 | Q98: 437794 | R98: 953155 | S98: 340628 | T98: 380457 | U98: 721085
B99: Tennessee | C99: TN | D99: 1032318 | E99: 922708 | F99: 0 | G99: 217 | H99: 0 | I99: 480 | J99: 731137 | K99: 679786 | L99: 1410923 | M99: 465924 | N99: 642418 | O99: 1108342 | P99: 766268 | Q99: 634430 | R99: 1400698 | S99: 484679 | T99: 601755 | U99: 1086434
B100: Massachusetts | C100: MA | D100: 870392 | E100: 773320 | F100: 0 | G100: 268 | H100: 0 | I100: 480 | J100: 953239 | K100: 430940 | L100: 1384179 | M100: 707334 | N100: 400353 | O100: 1107687 | P100: 969860 | Q100: 394117 | R100: 1363977 | S100: 712489 | T100: 364214 | U100: 1076703
B101: Virginia | C101: VA | D101: 950453 | E101: 800937 | F101: 0 | G101: 199 | H101: 0 | I101: 480 | J101: 1066130 | K101: 522561 | L101: 1588691 | M101: 613829 | N101: 471207 | O101: 1085036 | P101: 1111331 | Q101: 453666 | R101: 1564997 | S101: 643420 | T101: 405491 | U101: 1048911
B102: North Carolina | C102: NC | D102: 1412287 | E102: 1273757 | F102: 0 | G102: 199 | H102: 0 | I102: 480 | J102: 1078752 | K102: 1016239 | L102: 2094991 | M102: 688600 | N102: 951499 | O102: 1640099 | P102: 1152287 | Q102: 914489 | R102: 2066776 | S102: 736989 | T102: 858602 | U102: 1595591
B103: Ohio | C103: OH | D103: 1696105 | E103: 1295845 | F103: 0 | G103: 217 | H103: 0 | I103: 480 | J103: 1159902 | K103: 1254821 | L103: 2414723 | M103: 953694 | N103: 1032852 | O103: 1986546 | P103: 1228178 | Q103: 1166619 | R103: 2394797 | S103: 989439 | T103: 952239 | U103: 1941678
B104: Illinois | C104: IL | D104: 1529640 | E104: 1333564 | F104: 0 | G104: 189.2 | H104: 0 | I104: 480 | J104: 1428162 | K104: 872003 | L104: 2300165 | M104: 995305 | N104: 812858 | O104: 1808163 | P104: 1510431 | Q104: 762075 | R104: 2272506 | S104: 1051701 | T104: 699137 | U104: 1750838
B105: Pennsylvania | C105: PA | D105: 1937109 | E105: 1724884 | F105: 0 | G105: 302 | H105: 0 | I105: 480 | J105: 1436521 | K105: 1382074 | L105: 2818595 | M105: 1061403 | N105: 1221132 | O105: 2282535 | P105: 1490025 | Q105: 1299551 | R105: 2789576 | S105: 1081139 | T105: 1139687 | U105: 2220826
B106: Rhode Island | C106: RI | D106: 170272 | E106: 161221 | F106: 0 | G106: 266 | H106: 0 | I106: 480 | J106: 105743 | K106: 124063 | L106: 229806 | M106: 65331 | N106: 119294 | O106: 184625 | P106: 112704 | Q106: 113925 | R106: 226629 | S106: 70060 | T106: 109352 | U106: 179412
B107: Alaska | C107: AK | D107: 39277 | E107: 33159 | F107: NULL | G107: NULL | H107: NULL | I107: NULL | J107: 107350 | K107: 2428 | L107: 109778 | M107: 70356 | N107: 1324 | O107: 71680 | P107: 104436 | Q107: 2344 | R107: 106780 | S107: 68438 | T107: 1315 | U107: 69753
B108: South Dakota | C108: SD | D108: 156478 | E108: 126486 | F108: 0 | G108: 253.8 | H108: 0 | I108: 480 | J108: 131789 | K108: 55090 | L108: 186879 | M108: 112656 | N108: 22681 | O108: 135337 | P108: 135834 | Q108: 47199 | R108: 183033 | S108: 111219 | T108: 19259 | U108: 130478
B109: New Hampshire | C109: NH | D109: 196861 | E109: 167559 | F109: 0 | G109: 138 | H109: 0 | I109: 480 | J109: 227398 | K109: 93505 | L109: 320903 | M109: 155192 | N109: 75778 | O109: 230970 | P109: 233963 | Q109: 79762 | R109: 313725 | S109: 157045 | T109: 63316 | U109: 220361
B110: West Virginia | C110: WV | D110: 254225 | E110: 222520 | F110: 0 | G110: 166 | H110: 0 | I110: 480 | J110: 236322 | K110: 206055 | L110: 442377 | M110: 153149 | N110: 172901 | O110: 326050 | P110: 255524 | Q110: 188070 | R110: 443594 | S110: 166088 | T110: 155377 | U110: 321465
B111: New Mexico | C111: NM | D111: 278548 | E111: 257165 | F111: 0 | G111: 188 | H111: 0 | I111: 480 | J111: 239685 | K111: 202348 | L111: 442033 | M111: 139757 | N111: 191843 | O111: 331600 | P111: 252875 | Q111: 183789 | R111: 436664 | S111: 147954 | T111: 173983 | U111: 321937
B112: Louisiana | C112: LA | D112: 629676 | E112: 575025 | F112: 0 | G112: 222 | H112: 0 | I112: 480 | J112: 447235 | K112: 450873 | L112: 898108 | M112: 290690 | N112: 431018 | O112: 721708 | P112: 476464 | Q112: 413154 | R112: 889618 | S112: 307269 | T112: 395243 | U112: 702512
B113: Wisconsin | C113: WI | D113: 919646 | E113: 830611 | F113: 0 | G113: 298 | H113: 0 | I113: 480 | J113: 594116 | K113: 644153 | L113: 1238269 | M113: 425778 | N113: 522882 | O113: 948660 | P113: 620621 | Q113: 595723 | R113: 1216344 | S113: 422337 | T113: 479171 | U113: 901508
B114: New York | C114: NY | D114: 2340268 | E114: 2038304 | F114: 0 | G114: 261 | H114: 0 | I114: 480 | J114: 1933688 | K114: 1794898 | L114: 3728586 | M114: 1360500 | N114: 1666237 | O114: 3026737 | P114: 1997794 | Q114: 1680710 | R114: 3678504 | S114: 1384095 | T114: 1553996 | U114: 2938091
B115: =TRIM(_xlfn.CONCAT(TRIM(C115)&TRIM(L115))) -> StateNameRankOrder | C115: StateName | D115: StateAbbreviation | E115: Parent Organization (Last) | F115: Enrollment | G115: PrevYearEnrollment | H115: MinPremium | I115: MaxPremium | J115: MinDrugPremium | K115: MaxDrugPremium | L115: RankOrder | M115: MinStarRating | N115: MaxStarRating
B116: Texas1 | C116: Texas | D116: TX | E116: UnitedHealth Group, Inc. | F116: 924589 | G116: 889914 | H116: 0 | I116: 199 | J116: 0 | K116: 480 | L116: 1 | M116: No data. | N116: No data.
B117: Texas2 | C117: Texas | D117: TX | E117: Humana Inc. | F117: 602845 | G117: 592334 | H117: 0 | I117: 97 | J117: 0 | K117: 480 | L117: 2 | M117: No data. | N117: No data.
B118: Texas3 | C118: Texas | D118: TX | E118: Centene Corporation | F118: 432000 | G118: 257499 | H118: 0 | I118: 25.1 | J118: 0 | K118: 480 | L118: 3 | M118: No data. | N118: No data.
B119: Texas4 | C119: Texas | D119: TX | E119: CVS Health Corporation | F119: 398896 | G119: 382189 | H119: 0 | I119: 24.7 | J119: 195 | K119: 480 | L119: 4 | M119: No data. | N119: No data.
B120: Texas5 | C120: Texas | D120: TX | E120: CIGNA | F120: 222451 | G120: 207031 | H120: 0 | I120: 19 | J120: 190 | K120: 480 | L120: 5 | M120: No data. | N120: No data.
B121: Kansas1 | C121: Kansas | D121: KS | E121: CVS Health Corporation | F121: 106346 | G121: 94732 | H121: 0 | I121: 23.5 | J121: 0 | K121: 450 | L121: 1 | M121: No data. | N121: No data.
B122: Kansas2 | C122: Kansas | D122: KS | E122: Humana Inc. | F122: 97072 | G122: 92822 | H122: 0 | I122: 132 | J122: 0 | K122: 480 | L122: 2 | M122: No data. | N122: No data.
B123: Kansas3 | C123: Kansas | D123: KS | E123: Centene Corporation | F123: 68731 | G123: 27890 | H123: 0 | I123: 32.9 | J123: 0 | K123: 480 | L123: 3 | M123: No data. | N123: No data.
B124: Kansas4 | C124: Kansas | D124: KS | E124: UnitedHealth Group, Inc. | F124: 66799 | G124: 59413 | H124: 0 | I124: 199 | J124: 0 | K124: 480 | L124: 4 | M124: No data. | N124: No data.
B125: Kansas5 | C125: Kansas | D125: KS | E125: Blue Cross Blue Shield of Kansas | F125: 24894 | G125: 20366 | H125: 0 | I125: 50 | J125: 0 | K125: 250 | L125: 5 | M125: No data. | N125: No data.
B126: Pennsylvania1 | C126: Pennsylvania | D126: PA | E126: CVS Health Corporation | F126: 460886 | G126: 422257 | H126: 0 | I126: 170 | J126: 0 | K126: 375 | L126: 1 | M126: No data. | N126: No data.
B127: Pennsylvania2 | C127: Pennsylvania | D127: PA | E127: UnitedHealth Group, Inc. | F127: 209849 | G127: 210739 | H127: 0 | I127: 199 | J127: 0 | K127: 480 | L127: 2 | M127: No data. | N127: No data.
B128: Pennsylvania3 | C128: Pennsylvania | D128: PA | E128: UPMC Health System | F128: 194973 | G128: 195507 | H128: 0 | I128: 302 | J128: 0 | K128: 480 | L128: 3 | M128: No data. | N128: No data.
B129: Pennsylvania4 | C129: Pennsylvania | D129: PA | E129: Centene Corporation | F129: 191674 | G129: 90766 | H129: 0 | I129: 40.7 | J129: 0 | K129: 480 | L129: 4 | M129: No data. | N129: No data.
B130: Pennsylvania5 | C130: Pennsylvania | D130: PA | E130: Humana Inc. | F130: 188128 | G130: 167317 | H130: 0 | I130: 128 | J130: 0 | K130: 480 | L130: 5 | M130: No data. | N130: No data.
B131: Wisconsin1 | C131: Wisconsin | D131: WI | E131: UnitedHealth Group, Inc. | F131: 278365 | G131: 268094 | H131: 0 | I131: 112 | J131: 0 | K131: 480 | L131: 1 | M131: No data. | N131: No data.
B132: Wisconsin2 | C132: Wisconsin | D132: WI | E132: Humana Inc. | F132: 137856 | G132: 142509 | H132: 0 | I132: 120 | J132: 200 | K132: 480 | L132: 2 | M132: No data. | N132: No data.
B133: Wisconsin3 | C133: Wisconsin | D133: WI | E133: Centene Corporation | F133: 90865 | G133: 35731 | H133: 35.7 | I133: 35.7 | J133: 480 | K133: 480 | L133: 3 | M133: No data. | N133: No data.
B134: Wisconsin4 | C134: Wisconsin | D134: WI | E134: CVS Health Corporation | F134: 87788 | G134: 75687 | H134: 0 | I134: 27 | J134: 0 | K134: 200 | L134: 4 | M134: No data. | N134: No data.
B135: Wisconsin5 | C135: Wisconsin | D135: WI | E135: Network Health, Inc. | F135: 69489 | G135: 67257 | H135: 0 | I135: 298 | J135: 195 | K135: 480 | L135: 5 | M135: No data. | N135: No data.
B136: Delaware1 | C136: Delaware | D136: DE | E136: UnitedHealth Group, Inc. | F136: 39743 | G136: 40524 | H136: 0 | I136: 40.6 | J136: 0 | K136: 480 | L136: 1 | M136: No data. | N136: No data.
B137: Delaware2 | C137: Delaware | D137: DE | E137: CVS Health Corporation | F137: 25777 | G137: 23902 | H137: 0 | I137: 84 | J137: 0 | K137: 450 | L137: 2 | M137: No data. | N137: No data.
B138: Delaware3 | C138: Delaware | D138: DE | E138: Humana Inc. | F138: 24014 | G138: 21865 | H138: 0 | I138: 70 | J138: 0 | K138: 480 | L138: 3 | M138: No data. | N138: No data.
B139: Delaware4 | C139: Delaware | D139: DE | E139: Centene Corporation | F139: 17892 | G139: 7584 | H139: NULL | I139: NULL | J139: NULL | K139: NULL | L139: 4 | M139: No data. | N139: No data.
B140: Delaware5 | C140: Delaware | D140: DE | E140: CIGNA | F140: 13578 | G140: 9343 | H140: 0 | I140: 75 | J140: 0 | K140: 480 | L140: 5 | M140: No data. | N140: No data.
B141: Indiana1 | C141: Indiana | D141: IN | E141: UnitedHealth Group, Inc. | F141: 249203 | G141: 241967 | H141: 0 | I141: 29.7 | J141: 0 | K141: 480 | L141: 1 | M141: No data. | N141: No data.
B142: Indiana2 | C142: Indiana | D142: IN | E142: Humana Inc. | F142: 216756 | G142: 220582 | H142: 0 | I142: 136 | J142: 0 | K142: 480 | L142: 2 | M142: No data. | N142: No data.
B143: Indiana3 | C143: Indiana | D143: IN | E143: CVS Health Corporation | F143: 143676 | G143: 124666 | H143: 0 | I143: 29 | J143: 0 | K143: 425 | L143: 3 | M143: No data. | N143: No data.
B144: Indiana4 | C144: Indiana | D144: IN | E144: Centene Corporation | F144: 123599 | G144: 51702 | H144: 0 | I144: 29.7 | J144: 0 | K144: 480 | L144: 4 | M144: No data. | N144: No data.
B145: Indiana5 | C145: Indiana | D145: IN | E145: Anthem, Inc. | F145: 112365 | G145: 74604 | H145: 0 | I145: 80 | J145: 0 | K145: 480 | L145: 5 | M145: No data. | N145: No data.
B146: Illinois1 | C146: Illinois | D146: IL | E146: CVS Health Corporation | F146: 314695 | G146: 291136 | H146: 0 | I146: 66 | J146: 0 | K146: 150 | L146: 1 | M146: No data. | N146: No data.
B147: Illinois2 | C147: Illinois | D147: IL | E147: Humana Inc. | F147: 310803 | G147: 315481 | H147: 0 | I147: 146 | J147: 0 | K147: 480 | L147: 2 | M147: No data. | N147: No data.
B148: Illinois3 | C148: Illinois | D148: IL | E148: UnitedHealth Group, Inc. | F148: 270676 | G148: 262938 | H148: 0 | I148: 49 | J148: 0 | K148: 480 | L148: 3 | M148: No data. | N148: No data.
B149: Illinois4 | C149: Illinois | D149: IL | E149: Centene Corporation | F149: 230429 | G149: 97809 | H149: 0 | I149: 26.6 | J149: 0 | K149: 480 | L149: 4 | M149: No data. | N149: No data.
B150: Illinois5 | C150: Illinois | D150: IL | E150: Health Care Service Corporation | F150: 197113 | G150: 173216 | H150: 0 | I150: 189.2 | J150: 0 | K150: 480 | L150: 5 | M150: No data. | N150: No data.
B151: New Hampshire1 | C151: New Hampshire | D151: NH | E151: UnitedHealth Group, Inc. | F151: 52056 | G151: 54228 | H151: 0 | I151: 72 | J151: 0 | K151: 480 | L151: 1 | M151: No data. | N151: No data.
B152: New Hampshire2 | C152: New Hampshire | D152: NH | E152: Humana Inc. | F152: 32588 | G152: 30412 | H152: 0 | I152: 59.6 | J152: 0 | K152: 480 | L152: 2 | M152: No data. | N152: No data.
B153: New Hampshire3 | C153: New Hampshire | D153: NH | E153: Centene Corporation | F153: 31655 | G153: 15505 | H153: 0 | I153: 30.5 | J153: 160 | K153: 480 | L153: 3 | M153: No data. | N153: No data.
B154: New Hampshire4 | C154: New Hampshire | D154: NH | E154: CVS Health Corporation | F154: 29352 | G154: 23460 | H154: 0 | I154: 0 | J154: 0 | K154: 0 | L154: 4 | M154: No data. | N154: No data.
B155: New Hampshire5 | C155: New Hampshire | D155: NH | E155: Anthem, Inc. | F155: 12300 | G155: 10298 | H155: 0 | I155: 54 | J155: 95 | K155: 480 | L155: 5 | M155: No data. | N155: No data.
B156: Maryland1 | C156: Maryland | D156: MD | E156: UnitedHealth Group, Inc. | F156: 101066 | G156: 104342 | H156: 0 | I156: 199 | J156: 0 | K156: 480 | L156: 1 | M156: No data. | N156: No data.
B157: Maryland2 | C157: Maryland | D157: MD | E157: CVS Health Corporation | F157: 89559 | G157: 81212 | H157: 118 | I157: 118 | J157: 330 | K157: 330 | L157: 2 | M157: No data. | N157: No data.
B158: Maryland3 | C158: Maryland | D158: MD | E158: Centene Corporation | F158: 86888 | G158: 33211 | H158: NULL | I158: NULL | J158: NULL | K158: NULL | L158: 3 | M158: No data. | N158: No data.
B159: Maryland4 | C159: Maryland | D159: MD | E159: Humana Inc. | F159: 69531 | G159: 65302 | H159: 0 | I159: 70 | J159: 265 | K159: 265 | L159: 4 | M159: No data. | N159: No data.
B160: Maryland5 | C160: Maryland | D160: MD | E160: CIGNA | F160: 62706 | G160: 38185 | H160: 30 | I160: 101 | J160: 0 | K160: 480 | L160: 5 | M160: No data. | N160: No data.
B161: Colorado1 | C161: Colorado | D161: CO | E161: UnitedHealth Group, Inc. | F161: 233704 | G161: 237861 | H161: 0 | I161: 199 | J161: 0 | K161: 480 | L161: 1 | M161: No data. | N161: No data.
B162: Colorado2 | C162: Colorado | D162: CO | E162: Humana Inc. | F162: 145367 | G162: 140108 | H162: 0 | I162: 90 | J162: 0 | K162: 480 | L162: 2 | M162: No data. | N162: No data.
B163: Colorado3 | C163: Colorado | D163: CO | E163: Kaiser Foundation Health Plan, Inc. | F163: 83199 | G163: 83011 | H163: 0 | I163: 186 | J163: 0 | K163: 480 | L163: 3 | M163: No data. | N163: No data.
B164: Colorado4 | C164: Colorado | D164: CO | E164: Centene Corporation | F164: 74339 | G164: 22637 | H164: NULL | I164: NULL | J164: NULL | K164: NULL | L164: 4 | M164: No data. | N164: No data.
B165: Colorado5 | C165: Colorado | D165: CO | E165: CVS Health Corporation | F165: 55833 | G165: 52249 | H165: 0 | I165: 47 | J165: 0 | K165: 450 | L165: 5 | M165: No data. | N165: No data.
B166: District of Columbia1 | C166: District of Columbia | D166: DC | E166: UnitedHealth Group, Inc. | F166: 19841 | G166: 20758 | H166: 0 | I166: 29 | J166: 0 | K166: 0 | L166: 1 | M166: No data. | N166: No data.
B167: District of Columbia2 | C167: District of Columbia | D167: DC | E167: CVS Health Corporation | F167: 7725 | G167: 7061 | H167: 38 | I167: 69 | J167: 0 | K167: 250 | L167: 2 | M167: No data. | N167: No data.
B168: District of Columbia3 | C168: District of Columbia | D168: DC | E168: CIGNA | F168: 7407 | G168: 4240 | H168: 0 | I168: 75 | J168: 0 | K168: 0 | L168: 3 | M168: No data. | N168: No data.
B169: District of Columbia4 | C169: District of Columbia | D169: DC | E169: Centene Corporation | F169: 6554 | G169: 2489 | H169: NULL | I169: NULL | J169: NULL | K169: NULL | L169: 4 | M169: No data. | N169: No data.
B170: District of Columbia5 | C170: District of Columbia | D170: DC | E170: Kaiser Foundation Health Plan, Inc. | F170: 4583 | G170: 4429 | H170: 0 | I170: 142 | J170: 0 | K170: 0 | L170: 5 | M170: No data. | N170: No data.
B171: =TRIM(_xlfn.CONCAT(TRIM(C171)&TRIM(L171))) -> Michigan1 | C171: Michigan | D171: MI | E171: Humana Inc. | F171: 195829 | G171: 194494 | H171: 0 | I171: 112 | J171: 0 | K171: 480 | L171: 1 | M171: No data. | N171: No data.
B172: Michigan2 | C172: Michigan | D172: MI | E172: Spectrum Health System | F172: 191758 | G172: 181145 | H172: 0 | I172: 225 | J172: 0 | K172: 480 | L172: 2 | M172: No data. | N172: No data.
B173: Michigan3 | C173: Michigan | D173: MI | E173: Blue Cross Blue Shield of Michigan Mutual Ins. Co. | F173: 189932 | G173: 184780 | H173: 0 | I173: 301 | J173: 0 | K173: 50 | L173: 3 | M173: No data. | N173: No data.
B174: Michigan4 | C174: Michigan | D174: MI | E174: Centene Corporation | F174: 175025 | G174: 88187 | H174: 0 | I174: 30.6 | J174: 0 | K174: 480 | L174: 4 | M174: No data. | N174: No data.
B175: Michigan5 | C175: Michigan | D175: MI | E175: CVS Health Corporation | F175: 159900 | G175: 145875 | H175: 0 | I175: 29 | J175: 0 | K175: 425 | L175: 5 | M175: No data. | N175: No data.
B176: Virginia1 | C176: Virginia | D176: VA | E176: Humana Inc. | F176: 260222 | G176: 243832 | H176: 0 | I176: 127 | J176: 0 | K176: 480 | L176: 1 | M176: No data. | N176: No data.
B177: Virginia2 | C177: Virginia | D177: VA | E177: UnitedHealth Group, Inc. | F177: 217610 | G177: 209053 | H177: 0 | I177: 199 | J177: 0 | K177: 480 | L177: 2 | M177: No data. | N177: No data.
B178: Virginia3 | C178: Virginia | D178: VA | E178: CVS Health Corporation | F178: 145048 | G178: 122733 | H178: 0 | I178: 100 | J178: 0 | K178: 400 | L178: 3 | M178: No data. | N178: No data.
B179: Virginia4 | C179: Virginia | D179: VA | E179: Centene Corporation | F179: 127165 | G179: 52242 | H179: NULL | I179: NULL | J179: NULL | K179: NULL | L179: 4 | M179: No data. | N179: No data.
B180: Virginia5 | C180: Virginia | D180: VA | E180: Anthem, Inc. | F180: 116468 | G180: 97187 | H180: 0 | I180: 35.1 | J180: 0 | K180: 480 | L180: 5 | M180: No data. | N180: No data.
B181: Maine1 | C181: Maine | D181: ME | E181: Martin's Point Health Care, Inc. | F181: 56829 | G181: 44055 | H181: 0 | I181: 99 | J181: 0 | K181: 275 | L181: 1 | M181: No data. | N181: No data.
B182: Maine2 | C182: Maine | D182: ME | E182: UnitedHealth Group, Inc. | F182: 54794 | G182: 58101 | H182: 0 | I182: 72 | J182: 0 | K182: 480 | L182: 2 | M182: No data. | N182: No data.
B183: Maine3 | C183: Maine | D183: ME | E183: Centene Corporation | F183: 49101 | G183: 38013 | H183: 0 | I183: 30.5 | J183: 0 | K183: 480 | L183: 3 | M183: No data. | N183: No data.
B184: Maine4 | C184: Maine | D184: ME | E184: CVS Health Corporation | F184: 28978 | G184: 26157 | H184: 0 | I184: 59 | J184: 0 | K184: 480 | L184: 4 | M184: No data. | N184: No data.
B185: Maine5 | C185: Maine | D185: ME | E185: Humana Inc. | F185: 23853 | G185: 22621 | H185: 0 | I185: 39.6 | J185: 0 | K185: 480 | L185: 5 | M185: No data. | N185: No data.
B186: Alaska1 | C186: Alaska | D186: AK | E186: Humana Inc. | F186: 12978 | G186: 12384 | H186: NULL | I186: NULL | J186: NULL | K186: NULL | L186: 1 | M186: No data. | N186: No data.
B187: Alaska2 | C187: Alaska | D187: AK | E187: UnitedHealth Group, Inc. | F187: 7434 | G187: 9048 | H187: NULL | I187: NULL | J187: NULL | K187: NULL | L187: 2 | M187: No data. | N187: No data.
B188: Alaska3 | C188: Alaska | D188: AK | E188: Centene Corporation | F188: 6880 | G188: 2575 | H188: NULL | I188: NULL | J188: NULL | K188: NULL | L188: 3 | M188: No data. | N188: No data.
B189: Alaska4 | C189: Alaska | D189: AK | E189: CIGNA | F189: 6634 | G189: 4437 | H189: NULL | I189: NULL | J189: NULL | K189: NULL | L189: 4 | M189: No data. | N189: No data.
B190: Alaska5 | C190: Alaska | D190: AK | E190: Rite Aid Corporation | F190: 2406 | G190: 1778 | H190: NULL | I190: NULL | J190: NULL | K190: NULL | L190: 5 | M190: No data. | N190: No data.
B191: South Carolina1 | C191: South Carolina | D191: SC | E191: Humana Inc. | F191: 205553 | G191: 105048 | H191: 0 | I191: 103 | J191: 0 | K191: 480 | L191: 1 | M191: No data. | N191: No data.
B192: South Carolina2 | C192: South Carolina | D192: SC | E192: UnitedHealth Group, Inc. | F192: 183823 | G192: 171978 | H192: 0 | I192: 49 | J192: 0 | K192: 480 | L192: 2 | M192: No data. | N192: No data.
B193: South Carolina3 | C193: South Carolina | D193: SC | E193: CVS Health Corporation | F193: 134141 | G193: 123257 | H193: 0 | I193: 28 | J193: 0 | K193: 150 | L193: 3 | M193: No data. | N193: No data.
B194: South Carolina4 | C194: South Carolina | D194: SC | E194: Centene Corporation | F194: 115416 | G194: 58584 | H194: 0 | I194: 44 | J194: 0 | K194: 480 | L194: 4 | M194: No data. | N194: No data.
B195: South Carolina5 | C195: South Carolina | D195: SC | E195: BlueCross BlueShield of South Carolina (BCBSSC) | F195: 36434 | G195: 30293 | H195: 0 | I195: 25 | J195: 50 | K195: 75 | L195: 5 | M195: No data. | N195: No data.
B196: Rhode Island1 | C196: Rhode Island | D196: RI | E196: Blue Cross & Blue Shield of Rhode Island | F196: 59945 | G196: 57834 | H196: 0 | I196: 266 | J196: 0 | K196: 480 | L196: 1 | M196: No data. | N196: No data.
B197: Rhode Island2 | C197: Rhode Island | D197: RI | E197: UnitedHealth Group, Inc. | F197: 47149 | G197: 45493 | H197: 0 | I197: 55 | J197: 0 | K197: 480 | L197: 2 | M197: No data. | N197: No data.
B198: Rhode Island3 | C198: Rhode Island | D198: RI | E198: CVS Health Corporation | F198: 14584 | G198: 14547 | H198: 0 | I198: 0 | J198: 0 | K198: 0 | L198: 3 | M198: No data. | N198: No data.
B199: Rhode Island4 | C199: Rhode Island | D199: RI | E199: NEIGHBORHOOD HEALTH PLAN OF RHODE ISLAND | F199: 12731 | G199: 12851 | H199: NULL | I199: NULL | J199: NULL | K199: NULL | L199: 4 | M199: No data. | N199: No data.
B200: Rhode Island5 | C200: Rhode Island | D200: RI | E200: Centene Corporation | F200: 12323 | G200: 6950 | H200: NULL | I200: NULL | J200: NULL | K200: NULL | L200: 5 | M200: No data. | N200: No data.
B201: Guam1 | C201: Guam | D201: GU | E201: UnitedHealth Group, Inc. | F201: 117876 | G201: 169884 | H201: NULL | I201: NULL | J201: NULL | K201: NULL | L201: 1 | M201: No data. | N201: No data.
B202: Washington1 | C202: Washington | D202: WA | E202: UnitedHealth Group, Inc. | F202: 227104 | G202: 222382 | H202: 0 | I202: 88 | J202: 0 | K202: 480 | L202: 1 | M202: No data. | N202: No data.
B203: Washington2 | C203: Washington | D203: WA | E203: Humana Inc. | F203: 156537 | G203: 150615 | H203: 0 | I203: 200 | J203: 0 | K203: 480 | L203: 2 | M203: No data. | N203: No data.
B204: Washington3 | C204: Washington | D204: WA | E204: CVS Health Corporation | F204: 128966 | G204: 122927 | H204: 0 | I204: 99 | J204: 0 | K204: 0 | L204: 3 | M204: No data. | N204: No data.
B205: Washington4 | C205: Washington | D205: WA | E205: Kaiser Foundation Health Plan, Inc. | F205: 88866 | G205: 89073 | H205: 0 | I205: 296 | J205: 0 | K205: 200 | L205: 4 | M205: No data. | N205: No data.
B206: Washington5 | C206: Washington | D206: WA | E206: Centene Corporation | F206: 84210 | G206: 33834 | H206: 0 | I206: 121 | J206: 0 | K206: 480 | L206: 5 | M206: No data. | N206: No data.
B207: Massachusetts1 | C207: Massachusetts | D207: MA | E207: UnitedHealth Group, Inc. | F207: 163532 | G207: 159098 | H207: 0 | I207: 199 | J207: 0 | K207: 480 | L207: 1 | M207: No data. | N207: No data.
... 173 more rows

Sheet States (hidden)
A1: StateAbbrev | B1: StateName
A2: AK | B2: Alaska
A3: AL | B3: Alabama
A4: AR | B4: Arkansas
A5: AZ | B5: Arizona
A6: CA | B6: California
A7: CO | B7: Colorado
A8: CT | B8: Connecticut
A9: DC | B9: District of Columbia
A10: DE | B10: Delaware
A11: FL | B11: Florida
A12: GA | B12: Georgia
A13: HI | B13: Hawaii
A14: IA | B14: Iowa
A15: ID | B15: Idaho
A16: IL | B16: Illinois
A17: IN | B17: Indiana
A18: KS | B18: Kansas
A19: KY | B19: Kentucky
A20: LA | B20: Louisiana
A21: MA | B21: Massachusetts
A22: MD | B22: Maryland
A23: ME | B23: Maine
A24: MI | B24: Michigan
A25: MN | B25: Minnesota
A26: MO | B26: Missouri
A27: MS | B27: Mississippi
A28: MT | B28: Montana
A29: NC | B29: North Carolina
A30: ND | B30: North Dakota
A31: NE | B31: Nebraska
A32: NH | B32: New Hampshire
A33: NJ | B33: New Jersey
A34: NM | B34: New Mexico
A35: NV | B35: Nevada
A36: NY | B36: New York
A37: OH | B37: Ohio
A38: OK | B38: Oklahoma
A39: OR | B39: Oregon
A40: PA | B40: Pennsylvania
A41: PR | B41: Puerto Rico
A42: RI | B42: Rhode Island
A43: SC | B43: South Carolina
A44: SD | B44: South Dakota
A45: TN | B45: Tennessee
A46: TX | B46: Texas
A47: UT | B47: Utah
A48: VA | B48: Virginia
A49: VT | B49: Vermont
A50: WA | B50: Washington
A51: WI | B51: Wisconsin
A52: WV | B52: West Virginia
A53: WY | B53: Wyoming
